bitfinex/quotes_SOLUSD_20250607
["timestamp","ask_amount","ask_price","bid_price","bid_amount"]
[1749289045897,4.92390928,151.97,151.94,20.95404816]
[1749289046478,6.57981313,151.98,151.94,20.95404816]
[1749289046677,4.92336474,151.97,151.94,20.95404816]
[1749289046878,17.25386129,151.98,151.94,20.95404816]
[1749289047176,4.92340715,151.97,151.94,20.95404816]
[1749289047370,4.92291278,151.96,151.94,10.28]
[1749289047578,6.58067912,151.96,151.93,10.67404816]
[1749289047771,11.5035919,151.96,151.93,10.67404816]
[1749289047972,4.92291278,151.95,151.93,10.67404816]
[1749289048198,6.58067912,151.96,151.93,10.67404816]
[1749289048377,11.50214732,151.96,151.93,10.67404816]
[1749289048989,6.58067912,151.96,151.93,10.67404816]
[1749289049195,11.50124793,151.96,151.93,6.83508138]
[1749289049580,4.92112513,151.98,151.95,6.83508138]
[1749289049781,4.9214616,151.98,151.96,6.83508138]
[1749289051281,11.50140191,151.98,151.96,6.83508138]
[1749289051495,6.57994031,151.98,151.96,6.83508138]
[1749289051677,11.50140191,151.98,151.96,6.83508138]
[1749289051883,6.57994031,151.98,151.95,6.83508138]
[1749289052078,11.50140191,151.98,151.95,6.83508138]
[1749289052400,6.57994031,151.98,151.95,6.83508138]
[1749289052582,11.50140191,151.98,151.95,6.83508138]
[1749289052782,6.57994031,151.98,151.95,6.83508138]
[1749289053097,11.50140191,151.98,151.95,6.83508138]
[1749289053299,6.57994031,151.98,151.95,10.67611921]
[1749289053499,11.50140191,151.98,151.95,10.67611921]
[1749289053682,6.57994031,151.98,151.95,10.67611921]
[1749289053882,11.50140191,151.98,151.95,10.67611921]
[1749289054099,6.57994031,151.98,151.95,10.67611921]
[1749289054297,11.50140191,151.98,151.95,10.67611921]
[1749289054610,6.57994031,151.98,151.95,10.67611921]
[1749289054817,11.50140191,151.98,151.95,10.67611921]
[1749289055018,6.57994031,151.98,151.95,10.67611921]
[1749289055226,11.50140191,151.98,151.95,10.67611921]
[1749289055396,6.57994031,151.98,151.95,10.67611921]
[1749289055591,11.50140191,151.98,151.95,10.67611921]
[1749289055797,6.57994031,151.98,151.95,10.67611921]
[1749289056097,11.50140191,151.98,151.95,10.67611921]
[1749289056310,6.57994031,151.98,151.95,10.67611921]
[1749289056512,11.50140191,151.98,151.95,10.67611921]
[1749289056709,6.57994031,151.98,151.95,10.67611921]
[1749289056901,11.50140191,151.98,151.95,10.67611921]
[1749289057094,6.57994031,151.98,151.95,10.67611921]
[1749289057302,11.50140191,151.98,151.95,10.67611921]
[1749289057508,6.57994031,151.98,151.95,10.67611921]
[1749289057704,11.50140191,151.98,151.95,10.67611921]
[1749289057892,6.57994031,151.98,151.95,10.67611921]
[1749289058089,11.50140191,151.98,151.95,10.67611921]
[1749289058405,6.57994031,151.98,151.95,10.67611921]
[1749289058715,11.50140191,151.98,151.95,10.67611921]
[1749289058914,6.57994031,151.98,151.95,10.67611921]
[1749289059118,11.50140191,151.98,151.95,10.67611921]
[1749289059316,6.57994031,151.98,151.95,10.67611921]
[1749289059620,11.50140191,151.98,151.95,10.67611921]
[1749289059831,6.57994031,151.98,151.95,10.67611921]
[1749289060126,11.50140191,151.98,151.95,10.67611921]
[1749289061427,6.57994031,151.98,151.95,10.67611921]
[1749289061924,11.50282479,151.97,151.94,10.67611921]
[1749289062122,6.5806002,151.97,151.94,10.67611921]
[1749289062331,6.5806002,151.97,151.93,10.67611921]
[1749289062621,4.92149444,151.96,151.93,10.67611921]
[1749289063521,6.5811122,151.95,151.93,10.67611921]
[1749289064104,11.50221185,151.95,151.93,10.67611921]
[1749289064304,6.5811122,151.95,151.93,10.67611921]
[1749289064510,11.50194222,151.96,151.93,10.67611921]
[1749289064703,6.58084257,151.96,151.94,10.67611921]
[1749289065106,6.58064432,151.97,151.94,10.67611921]
[1749289065431,6.57981313,151.98,151.94,10.67611921]
[1749289065718,4.92080133,151.97,151.94,10.67611921]
[1749289065925,4.92080133,151.96,151.94,10.67611921]
[1749289066225,4.92080133,151.97,151.94,10.67611921]
[1749289066526,4.92080133,151.96,151.91,6.5828451]
[1749289066727,4.92080133,151.97,151.94,10.67611921]
[1749289066914,11.50148045,151.96,151.93,10.67611921]
[1749289067116,6.58067912,151.96,151.93,10.67611921]
[1749289067407,11.50148045,151.96,151.93,10.67611921]
[1749289067614,6.58067912,151.96,151.93,10.67611921]
[1749289067826,11.50148045,151.96,151.94,10.67611921]
[1749289068124,6.58067912,151.96,151.94,10.67611921]
[1749289068321,4.92080133,151.96,151.94,10.67611921]
[1749289068523,6.58042998,151.97,151.94,10.67611921]
[1749289068723,11.50123131,151.97,151.94,10.67611921]
[1749289068924,6.58042998,151.97,151.95,10.67611921]
[1749289069232,11.50123131,151.97,151.95,10.67611921]
[1749289069408,11.50077854,151.98,151.95,10.67611921]
[1749289069601,4.92080133,151.97,151.95,10.67611921]
[1749289070423,4.92080133,151.97,151.94,10.67611921]
[1749289071043,4.92080133,151.98,151.94,10.67611921]
[1749289071226,4.92080133,151.97,151.94,10.67611921]
[1749289071410,11.5011875,151.97,151.94,10.67611921]
[1749289071611,6.58038617,151.97,151.94,10.67611921]
[1749289071810,11.5011875,151.97,151.94,10.67611921]
[1749289072012,6.58038617,151.97,151.94,10.67611921]
[1749289072211,11.5011875,151.97,151.94,10.67611921]
[1749289072412,6.58038617,151.97,151.94,10.67611921]
[1749289072626,11.5011875,151.97,151.94,10.67611921]
[1749289072836,6.58038617,151.97,151.94,10.67611921]
[1749289073036,11.5011875,151.97,151.91,6.5828451]
[1749289073225,6.58038617,151.97,151.94,6.83402015]
[1749289073416,11.5011875,151.97,151.94,6.83402015]
[1749289073608,6.58038617,151.97,151.94,6.83402015]
[1749289073804,11.5011875,151.97,151.94,6.83402015]
[1749289074006,6.58038617,151.97,151.94,6.83402015]
[1749289074220,11.5011875,151.97,151.93,6.83402015]
[1749289074609,4.92080133,151.96,151.93,6.83402015]
[1749289074815,11.50152373,151.97,151.93,6.83402015]
[1749289075016,11.50154384,151.97,151.93,6.83402015]
[1749289076430,6.58038617,151.97,151.93,6.83402015]
[1749289078236,11.50150034,151.96,151.93,6.83402015]
[1749289078530,6.58079197,151.96,151.93,6.83402015]
[1749289078729,11.50150034,151.96,151.93,6.83402015]
[1749289078929,6.58079197,151.96,151.93,6.83402015]
[1749289079130,11.50150034,151.96,151.93,6.83402015]
[1749289079318,6.58079197,151.96,151.93,6.83402015]
[1749289079517,11.50150034,151.96,151.93,6.83402015]
[1749289079843,6.58079197,151.96,151.94,6.83402015]
[1749289080939,4.92107894,151.96,151.94,6.83402015]
[1749289081438,6.5802461,151.97,151.94,6.83402015]
[1749289081824,11.5014503,151.97,151.94,6.83402015]
[1749289082935,6.5802461,151.97,151.94,6.83402015]
[1749289083314,4.92220511,151.96,151.94,6.83402015]
[1749289083531,11.50294718,151.96,151.94,6.83402015]
[1749289083736,6.58074207,151.96,151.94,6.83402015]
[1749289085431,6.58074207,151.96,151.93,6.83402015]
[1749289085610,11.50344626,151.96,151.93,6.83402015]
[1749289085816,6.58074207,151.96,151.93,6.83402015]
[1749289086048,11.50344626,151.96,151.93,6.83402015]
[1749289086228,6.58074207,151.96,151.93,6.83402015]
[1749289086431,6.58074207,151.96,151.92,6.83402015]
[1749289086432,11.50344626,151.96,151.92,6.83402015]
[1749289086632,4.92270419,151.95,151.92,6.83402015]
[1749289086959,4.92240065,151.95,151.91,6.83402015]
[1749289087241,13.41476222,151.96,151.91,6.83402015]
[1749289087543,11.5025885,151.95,151.92,6.83402015]
[1749289087744,6.58126134,151.95,151.92,6.83402015]
[1749289087942,11.5025885,151.95,151.92,6.83402015]
[1749289088242,6.58126134,151.95,151.92,6.83402015]
[1749289088429,11.5025885,151.95,151.92,6.83402015]
[1749289088627,6.58126134,151.95,151.92,6.83402015]
[1749289088831,11.5025885,151.95,151.92,6.83402015]
[1749289089032,6.58126134,151.95,151.92,6.83402015]
[1749289089239,11.5025885,151.95,151.92,6.83402015]
[1749289089432,6.58126134,151.95,151.92,6.83402015]
[1749289089629,6.58067912,151.96,151.92,6.83402015]
[1749289090345,13.41469927,151.96,151.9,36.22]
[1749289090524,4.91784472,151.95,151.91,6.83402015]
[1749289090726,4.91784472,151.95,151.92,6.83402015]
[1749289092451,6.58154534,151.94,151.91,6.83402015]
[1749289092932,6.58154534,151.94,151.9,36.22]
[1749289093136,6.58154534,151.94,151.9,17.05402015]
[1749289093350,11.49939006,151.94,151.9,17.05402015]
[1749289093571,6.83402015,151.92,151.82,54.38581559]
[1749289093734,6.83402015,151.91,151.86,6.83402015]
[1749289093927,6.83402015,151.9,151.86,6.83402015]
[1749289094126,4.91784472,151.91,151.88,6.83402015]
[1749289094447,6.5828451,151.91,151.88,6.83402015]
[1749289095668,6.5828451,151.91,151.87,6.83402015]
[1749289095829,13.41686525,151.91,151.85,6.5854014]
[1749289096150,6.5828451,151.91,151.87,6.83402015]
[1749289096338,13.4165624,151.92,151.87,6.83402015]
[1749289098145,18.32950748,151.93,151.88,6.83402015]
[1749289098338,13.41613252,151.93,151.89,6.83402015]
[1749289099646,6.5811122,151.95,151.92,6.83402015]
[1749289100062,13.41513235,151.95,151.91,6.83402015]
[1749289102769,6.83402015,151.94,151.9,6.83402015]
[1749289105080,6.58197854,151.93,151.9,6.83402015]
[1749289106064,4.91146056,151.96,151.92,6.83402015]
[1749289106255,6.72284069,151.96,151.92,6.83402015]
[1749289106669,12.99209908,151.97,151.93,6.83402015]
[1749289106853,8.08063852,151.97,151.93,6.83402015]
[1749289107180,8.08063852,151.97,151.89,16.78368461]
[1749289107469,14.91465867,151.97,151.93,6.83402015]
[1749289108576,8.08063852,151.97,151.93,6.83402015]
[1749289109151,8.08063852,151.97,151.93,10.67935841]
[1749289111364,43.259203,151.98,151.94,10.67935841]
[1749289111567,22.17066356,151.98,151.94,10.67935841]
[1749289111782,6.57984459,151.98,151.94,10.67935841]
[1749289115878,6.57984459,151.98,151.95,10.67935841]
[1749289116763,6.57984459,151.98,151.96,10.67935841]
[1749289116963,6.57949962,151.99,151.96,10.67935841]
[1749289117174,30.91146056,152.01,151.98,10.67935841]
[1749289117487,26.0,152.01,151.98,10.67935841]
[1749289118276,32.57886926,152.01,151.98,10.67935841]
[1749289118468,32.57886926,152.01,151.97,10.67935841]
[1749289118977,32.57886926,152.01,151.98,10.67935841]
[1749289120658,10.67935841,151.99,151.94,20.89935841]
[1749289121583,6.57981313,151.98,151.94,20.89935841]
[1749289122263,17.25917154,151.98,151.94,20.89935841]
[1749289122782,6.57981313,151.98,151.95,10.67935841]
[1749289125270,17.25917154,151.98,151.93,10.67935841]
[1749289125982,17.25917154,151.98,151.94,10.67935841]
[1749289128781,10.67935841,151.95,151.89,10.67935841]
[1749289128980,18.933972,151.97,151.89,10.67935841]
[1749289128981,10.67935841,151.94,151.89,10.67935841]
[1749289129188,10.67935841,151.93,151.88,10.67935841]
[1749289131184,6.58241179,151.92,151.87,26.0]
[1749289131388,6.58241179,151.92,151.88,10.67935841]
[1749289133390,6.58241179,151.92,151.89,10.67935841]
[1749289133700,6.58214035,151.93,151.89,10.67935841]
[1749289134074,6.58214035,151.93,151.9,10.67935841]
[1749289134698,6.58169291,151.94,151.91,10.67935841]
[1749289138374,6.58169291,151.94,151.86,76.12]
[1749289138581,6.58169291,151.94,151.9,10.67935841]
[1749289138777,17.26105132,151.94,151.9,10.67935841]
[1749289139601,6.58169291,151.94,151.9,10.67935841]
[1749289139806,6.58169291,151.94,151.91,10.67935841]
[1749289140913,6.5811122,151.95,151.91,10.67935841]
[1749289142390,6.5811122,151.95,151.92,10.67935841]
[1749289142911,4.90681588,151.97,151.93,10.67935841]
[1749289143120,26.0,151.98,151.94,10.67935841]
[1749289143877,6.57981313,151.98,151.94,10.67935841]
[1749289144193,17.25917154,151.98,151.93,10.67935841]
[1749289144387,10.67935841,151.97,151.93,10.67935841]
[1749289144998,6.58067912,151.96,151.93,10.67935841]
[1749289145612,6.58067912,151.96,151.92,10.67935841]
[1749289146489,6.58067912,151.96,151.94,10.67935841]
[1749289147513,6.7219747,151.98,151.94,10.67935841]
[1749289148382,6.7219747,151.98,151.91,46.50277382]
[1749289148588,17.40133311,151.98,151.94,10.67935841]
[1749289149111,6.7219747,151.98,151.94,10.67935841]
[1749289149496,17.40133311,151.98,151.94,10.67935841]
[1749289149901,6.7219747,151.98,151.94,10.67935841]
[1749289151283,6.57981313,151.98,151.94,10.67935841]
[1749289151522,11.48602945,152.0,151.97,10.67935841]
[1749289151822,6.57921357,152.0,151.98,10.67935841]
[1749289152115,42.86548781,152.01,151.95,6.58085832]
[1749289152299,42.86548781,152.01,151.97,10.67935841]
[1749289152515,37.95867193,152.01,151.97,10.67935841]
[1749289152897,37.95867193,152.01,151.98,10.67935841]
[1749289153393,37.95867193,152.01,151.97,10.67935841]
[1749289153394,48.63803034,152.01,151.97,10.67935841]
[1749289153599,10.67935841,152.0,151.96,10.67935841]
[1749289154505,6.57938022,151.99,151.96,10.67935841]
[1749289154709,6.57909114,152.0,151.97,10.67935841]
[1749289155712,6.57909114,152.0,151.96,10.67935841]
[1749289155908,6.57909114,152.0,151.97,10.67935841]
[1749289157630,6.57909114,152.0,151.96,10.67935841]
[1749289159613,17.25844955,152.0,151.92,26.0]
[1749289159815,10.67935841,151.99,151.95,10.67935841]
[1749289160815,6.57981313,151.98,151.95,10.67935841]
[1749289162633,6.57946655,151.99,151.96,10.67935841]
[1749289165021,17.25830577,152.0,151.95,10.67935841]
[1749289165617,10.67935841,151.99,151.95,10.67935841]
[1749289166118,23.02631578,152.0,151.96,10.67935841]
[1749289166723,6.57894736,152.0,151.96,10.67935841]
[1749289169730,6.57894736,152.0,151.97,10.67935841]
[1749289170930,6.57894736,152.0,151.96,10.67935841]
[1749289172724,10.67935841,151.99,151.95,10.67935841]
[1749289173240,10.67935841,151.99,151.94,10.67935841]
[1749289173824,6.57981313,151.98,151.94,10.67935841]
[1749289178139,6.57981313,151.98,151.95,10.67935841]
[1749289182136,11.48662901,151.98,151.95,10.67935841]
[1749289182341,6.57981313,151.98,151.94,10.67935841]
[1749289182629,11.48662901,151.98,151.94,10.67935841]
[1749289183430,11.48662901,151.98,151.92,72.52222772]
[1749289183635,11.48662901,151.98,151.95,10.67935841]
[1749289184348,6.57981313,151.98,151.95,10.67935841]
[1749289184550,11.48662901,151.98,151.95,10.67935841]
[1749289184850,6.57981313,151.98,151.96,10.67935841]
[1749289185050,11.48662901,151.98,151.96,10.67935841]
[1749289185254,6.57981313,151.98,151.93,6.58186648]
[1749289185550,11.48662901,151.98,151.96,10.67935841]
[1749289185862,11.48631006,151.99,151.96,10.67935841]
[1749289186182,6.57949418,151.99,151.96,10.67935841]
[1749289186328,4.90681588,151.98,151.96,10.67935841]
[1749289186734,11.48590192,152.0,151.97,10.67935841]
[1749289187122,6.57908604,152.0,151.97,10.67935841]
[1749289187759,6.57908604,152.0,151.93,1.5036]
[1749289188067,4.92304014,151.99,151.96,10.67935841]
[1749289189149,11.5026159,151.99,151.96,10.67935841]
[1749289189455,6.57957576,151.99,151.96,10.67935841]
[1749289189663,11.5026159,151.99,151.96,10.67935841]
[1749289189827,6.57957576,151.99,151.96,10.67935841]
[1749289190153,11.5026159,151.99,151.96,10.67935841]
[1749289190351,6.57957576,151.99,151.96,10.67935841]
[1749289190656,11.5026159,151.99,151.96,10.67935841]
[1749289190853,6.57957576,151.99,151.96,10.67935841]
[1749289191163,11.5026159,151.99,151.96,10.67935841]
[1749289191330,6.57957576,151.99,151.96,10.67935841]
[1749289191530,11.5026159,151.99,151.96,10.67935841]
[1749289191746,6.57957576,151.99,151.96,10.67935841]
[1749289191954,11.5026159,151.99,151.96,10.67935841]
[1749289192250,6.57957576,151.99,151.96,10.67935841]
[1749289192452,11.5026159,151.99,151.96,10.67935841]
[1749289192631,6.57957576,151.99,151.96,10.67935841]
[1749289193644,4.92256452,151.98,151.95,36.67935841]
[1749289194151,4.92256452,151.98,151.94,10.67935841]
[1749289194452,4.92289019,151.98,151.95,10.67935841]
[1749289194956,4.92289019,151.98,151.96,10.67935841]
[1749289195254,6.5802461,151.97,151.96,10.67935841]
[1749289195660,11.50324412,151.98,151.96,10.67935841]
[1749289195956,6.5799983,151.98,151.96,10.67935841]
[1749289196645,6.57938022,151.99,151.96,10.67935841]
[1749289196841,4.92377542,151.98,151.96,10.67935841]
[1749289197157,6.57938022,151.99,151.96,10.67935841]
[1749289197447,4.92385865,151.98,151.96,10.67935841]
[1749289197834,4.92382469,151.98,151.96,10.67935841]
[1749289198044,4.92382469,151.99,151.96,10.67935841]
[1749289198249,4.92382469,151.98,151.96,10.67935841]
[1749289198442,33.70567419,152.0,151.96,10.67935841]
[1749289198642,4.92400391,151.99,151.96,10.67935841]
[1749289198862,4.92400391,151.98,151.96,10.67935841]
[1749289199156,33.70567419,152.0,151.96,10.67935841]
[1749289199357,4.92433019,151.99,151.95,10.67935841]
[1749289199527,6.5802461,151.97,151.95,10.67935841]
[1749289200737,6.5802461,151.97,151.96,10.67935841]
[1749289201636,6.5802461,151.97,151.93,26.0]
[1749289201837,6.57981313,151.98,151.95,10.67935841]
[1749289202039,11.50437787,151.98,151.95,10.67935841]
[1749289202244,4.92448157,151.97,151.95,10.67935841]
[1749289203435,16.44845055,151.99,151.95,10.67935841]
[1749289203669,4.92471814,151.98,151.95,10.67935841]
[1749289203962,23.02783077,151.99,151.95,10.67935841]
[1749289204159,4.92469954,151.98,151.95,10.67935841]
[1749289204464,23.02783077,151.99,151.95,10.67935841]
[1749289204772,4.92494569,151.98,151.95,10.67935841]
[1749289204968,23.02783077,151.99,151.95,10.67935841]
[1749289205165,4.92507419,151.98,151.95,6.83318877]
[1749289205468,6.57938022,151.99,151.95,6.83318877]
[1749289205775,6.5802461,151.97,151.95,6.83318877]
[1749289207771,6.57938022,151.99,151.95,6.83318877]
[1749289208069,4.92463526,151.98,151.95,6.83318877]
[1749289208261,6.57938022,151.99,151.95,6.83318877]
[1749289208471,4.92442647,151.98,151.95,6.83318877]
[1749289208780,4.92442647,151.97,151.94,6.83318877]
[1749289208951,4.92442647,151.98,151.94,6.83318877]
[1749289209158,4.92442647,151.97,151.94,6.83318877]
[1749289209367,4.92428028,151.98,151.95,6.83318877]
[1749289209572,4.92428028,151.97,151.93,26.0]
[1749289209765,29.86101954,151.99,151.94,6.83318877]
[1749289209948,4.92394634,151.98,151.94,6.83318877]
[1749289210153,6.58067912,151.96,151.94,6.83318877]
[1749289213574,6.5802461,151.97,151.94,6.83318877]
[1749289214789,4.91963523,151.96,151.94,6.83318877]
[1749289215282,6.5802461,151.97,151.94,6.83318877]
[1749289215487,11.49988133,151.97,151.94,6.83318877]
[1749289215662,6.5802461,151.97,151.95,6.83318877]
[1749289215863,11.49988133,151.97,151.95,6.83318877]
[1749289216169,6.5802461,151.97,151.95,6.83318877]
[1749289216369,11.49988133,151.97,151.95,6.83318877]
[1749289216690,6.5802461,151.97,151.94,6.83318877]
[1749289216985,11.49988133,151.97,151.94,6.83318877]
[1749289217161,6.5802461,151.97,151.94,6.83318877]
[1749289217362,11.49988133,151.97,151.94,6.83318877]
[1749289217562,6.5802461,151.97,151.94,6.83318877]
[1749289217780,11.49988133,151.97,151.94,6.83318877]
[1749289217983,6.5802461,151.97,151.94,6.83318877]
[1749289218169,11.49988133,151.97,151.94,6.83318877]
[1749289218374,6.5802461,151.97,151.94,6.83318877]
[1749289218580,11.49988133,151.97,151.94,6.83318877]
[1749289218781,6.5802461,151.97,151.94,6.83318877]
[1749289219081,11.49988133,151.97,151.94,6.83318877]
[1749289219259,6.5802461,151.97,151.94,6.83318877]
[1749289219463,11.49988133,151.97,151.94,6.83318877]
[1749289219685,6.5802461,151.97,151.94,6.83318877]
[1749289219989,6.5802461,151.97,151.9,44.30671277]
[1749289220185,4.91860562,151.96,151.92,6.83318877]
[1749289220386,4.91860562,151.95,151.92,6.83318877]
[1749289220565,4.9180944,151.96,151.92,6.83318877]
[1749289220876,4.91799662,151.95,151.92,6.83318877]
[1749289221081,6.83318877,151.96,151.92,6.83318877]
[1749289221379,4.91653039,151.95,151.92,6.83318877]
[1749289221566,6.83318877,151.96,151.92,6.83318877]
[1749289221771,6.58154534,151.94,151.92,6.83318877]
[1749289223961,6.58154534,151.94,151.9,36.18]
[1749289224163,6.58154534,151.94,151.92,6.83318877]
[1749289226090,6.5811122,151.95,151.92,6.83318877]
[1749289226289,11.49745915,151.96,151.93,6.83318877]
[1749289226493,4.91667075,151.97,151.95,6.83318877]
[1749289226684,4.91667075,151.99,151.96,6.83318877]
[1749289226988,4.91667075,151.99,151.97,6.83318877]
[1749289227381,15.11667075,152.0,151.97,6.83318877]
[1749289227582,6.57948394,151.99,151.97,6.83318877]
[1749289230778,6.57948394,151.99,151.96,6.83318877]
[1749289231214,11.49615469,151.99,151.96,6.83318877]
[1749289232096,6.57948394,151.99,151.96,6.83318877]
[1749289232301,6.57948394,151.99,151.97,6.83318877]
[1749289232997,4.91667075,152.01,151.98,6.83318877]
[1749289233298,6.57813748,152.02,152.0,6.83318877]
[1749289233478,6.57813748,152.02,152.01,6.83318877]
[1749289234300,6.57776091,152.03,152.01,6.83318877]
[1749289235198,11.49403835,152.04,152.02,10.66818018]
[1749289235403,6.5773676,152.04,152.02,10.66818018]
[1749289235577,11.49403835,152.04,152.02,10.66818018]
[1749289235776,6.5773676,152.04,152.02,10.66818018]
[1749289236004,6.5773676,152.04,152.01,10.66818018]
[1749289238293,6.57678395,152.05,152.01,10.66818018]
[1749289238597,11.4934547,152.05,152.01,10.66818018]
[1749289239204,6.57678395,152.05,152.01,10.66818018]
[1749289239587,17.24496413,152.05,152.01,10.66818018]
[1749289239788,6.57678395,152.05,152.01,10.66818018]
[1749289240507,10.66818018,152.04,151.99,10.66818018]
[1749289240807,10.66818018,152.04,151.96,34.1053]
[1749289240808,10.66818018,152.02,151.98,10.66818018]
[1749289241301,10.66818018,152.01,151.97,10.66818018]
[1749289242295,6.57894736,152.0,151.97,10.66818018]
[1749289242501,6.57894736,152.0,151.96,10.66818018]
[1749289242502,17.24712754,152.0,151.96,10.66818018]
[1749289242707,17.24712754,152.0,151.95,20.84818018]
[1749289243289,17.24712754,152.0,151.96,10.66818018]
[1749289244995,10.66818018,152.01,151.96,10.66818018]
[1749289246594,10.66818018,152.01,151.97,10.66818018]
[1749289247310,6.57894736,152.0,151.97,10.66818018]
[1749289247607,6.57894736,152.0,151.95,20.84818018]
[1749289247608,10.66818018,151.99,151.95,20.84818018]
[1749289247983,10.66818018,151.99,151.95,10.66818018]
[1749289248594,6.57981313,151.98,151.95,10.66818018]
[1749289251509,6.57952005,151.99,151.96,10.66818018]
[1749289256627,27.11449691,152.01,151.96,10.66818018]
[1749289257424,0.14216157,152.01,151.96,6.83224214]
[1749289257609,6.97440371,152.01,151.97,6.83224214]
[1749289259213,6.57894736,152.0,151.97,10.67458476]
[1749289261021,6.57868742,152.01,151.97,10.67458476]
[1749289261731,17.25327218,152.01,151.96,10.67458476]
[1749289262115,10.67458476,152.0,151.96,10.67458476]
[1749289263232,6.57938022,151.99,151.96,10.67458476]
[1749289263908,6.57938022,151.99,151.97,10.67458476]
[1749289264635,6.57894736,152.0,151.97,10.67458476]
[1749289265925,6.57894736,152.0,151.96,10.67458476]
[1749289268126,6.57894736,152.0,151.94,26.0]
[1749289268513,6.57894736,152.0,151.96,10.67458476]
[1749289269337,10.67458476,151.99,151.95,10.67458476]
[1749289269636,10.67458476,151.99,151.93,10.18]
[1749289269637,10.67458476,151.97,151.93,10.18]
[1749289269817,10.67458476,151.97,151.92,10.67458476]
[1749289270637,10.67458476,151.96,151.9,26.0]
[1749289270840,10.67458476,151.96,151.91,10.67458476]
[1749289271137,6.5811122,151.95,151.9,26.0]
[1749289271350,17.25569696,151.95,151.91,10.67458476]
[1749289273219,4.90181239,151.97,151.92,10.67458476]
[1749289273447,6.58084185,151.96,151.93,10.67458476]
[1749289274921,17.2549973,151.97,151.93,10.67458476]
[1749289275219,6.58041254,151.97,151.94,10.67458476]
[1749289277227,6.58041254,151.97,151.9,6.58327847]
[1749289277552,6.58041254,151.97,151.9,10.67458476]
[1749289277553,10.67458476,151.95,151.9,10.67458476]
[1749289278129,10.67458476,151.94,151.9,10.67458476]
[1749289278442,10.67458476,151.93,151.89,10.67458476]
[1749289279029,10.67458476,151.93,151.86,32.58499162]
[1749289279239,10.67458476,151.93,151.89,10.67458476]
[1749289279436,6.58241179,151.92,151.89,10.67458476]
[1749289281832,6.58241179,151.92,151.88,10.67458476]
[1749289282061,17.25699655,151.92,151.88,10.67458476]
[1749289283661,10.67458476,151.91,151.87,10.67458476]
[1749289285252,6.58327847,151.9,151.87,10.67458476]
[1749289285640,17.25786323,151.9,151.86,10.67458476]
[1749289288347,6.58327847,151.9,151.87,10.67458476]
[1749289289739,17.25786323,151.9,151.86,10.67458476]
[1749289290668,6.58327847,151.9,151.87,10.67458476]
[1749289292659,17.25699655,151.92,151.88,10.67458476]
[1749289296362,17.25699655,151.92,151.86,6.58482955]
[1749289296568,10.67458476,151.91,151.87,10.67458476]
[1749289298151,10.67458476,151.91,151.85,10.18]
[1749289298343,10.67458476,151.91,151.87,10.67458476]
[1749289299966,6.58327847,151.9,151.87,10.67458476]
[1749289301368,6.58327847,151.9,151.88,10.67458476]
[1749289303168,6.5828451,151.91,151.88,10.67458476]
[1749289305053,10.67458476,151.91,151.87,10.67458476]
[1749289305650,10.67458476,151.9,151.85,20.85458476]
[1749289306069,10.67458476,151.9,151.85,10.18]
[1749289306251,10.67458476,151.9,151.86,10.67458476]
[1749289306951,10.67458476,151.91,151.87,10.67458476]
[1749289307350,10.81674633,151.92,151.87,10.67458476]
[1749289308660,17.25742986,151.91,151.87,10.67458476]
[1749289310375,6.5828451,151.91,151.87,10.67458476]
[1749289310678,6.5828451,151.91,151.86,6.58476021]
[1749289310865,6.5828451,151.91,151.87,10.67458476]
[1749289312064,6.5828451,151.91,151.88,10.67458476]
[1749289312867,17.2571273,151.92,151.88,10.67458476]
[1749289313983,6.58185008,151.94,151.9,10.67458476]
[1749289314183,17.25643484,151.94,151.9,10.67458476]
[1749289318886,10.67458476,151.93,151.89,10.67458476]
[1749289319687,10.67458476,151.93,151.86,6.58501251]
[1749289319868,6.58241179,151.92,151.89,10.67458476]
[1749289321190,17.25670035,151.93,151.89,10.67458476]
[1749289321693,22.14707866,151.93,151.89,10.67458476]
[1749289321998,17.25670035,151.93,151.89,10.67458476]
[1749289322167,22.14707866,151.93,151.89,10.67458476]
[1749289322494,22.14707866,151.93,151.9,10.67458476]
[1749289322495,6.58211559,151.93,151.9,10.67458476]
[1749289322866,11.50435822,151.93,151.9,10.67458476]
[1749289323087,17.25670035,151.93,151.86,6.58501251]
[1749289323308,10.67458476,151.92,151.88,10.67458476]
[1749289323674,22.17786713,151.93,151.89,10.67458476]
[1749289323975,6.58211559,151.93,151.89,10.67458476]
[1749289324178,11.50270548,151.93,151.89,10.67458476]
[1749289324370,22.17729024,151.93,151.89,10.67458476]
[1749289324571,17.25670035,151.93,151.89,10.67458476]
[1749289324880,22.17729024,151.93,151.87,6.58431622]
[1749289325074,17.25670035,151.93,151.89,10.67458476]
[1749289325271,22.17729024,151.93,151.89,10.67458476]
[1749289325493,6.58211559,151.93,151.89,10.67458476]
[1749289325787,11.50270548,151.93,151.9,10.67458476]
[1749289328172,11.50270548,151.93,151.89,10.67458476]
[1749289328871,4.92058989,151.92,151.89,10.67458476]
[1749289329992,4.92058989,151.92,151.88,26.0]
[1749289330395,4.92058989,151.92,151.89,10.67458476]
[1749289331000,11.50340568,151.92,151.89,26.0]
[1749289331183,4.92058989,151.91,151.88,10.67458476]
[1749289331384,4.92058989,151.91,151.87,10.67458476]